[Event "BLR-ch 1st Stage Men 2020"]
[Site "Minsk"]
[Date "2020.02.01"]
[Round "5.2"]
[White "Tsaruk, Maksim"]
[Black "Siniauski, Artsiom"]
[Result "1/2-1/2"]
[ECO "C07"]
[WhiteElo "2316"]
[BlackElo "2265"]
[Annotator "NA"]
[PlyCount "91"]
[EventDate "2020.02.01"]
[EventType "swiss"]
[EventCountry "BLR"]
[SourceTitle "playchess.com"]
[Source "ChessBase"]
[SourceQuality "1"]
[TimeControl "40/5400+30:1800+30"]

1. e4 {[%emt 0:00:00]} e6 {[%emt 0:00:00]} 2. d4 {[%emt 0:00:00]} d5 {[%emt 0:00:00]} 3. Nd2 {[%emt 0:00:00]} c5 {[%emt 0:00:00]} 4. Ngf3 {[%emt 0:00:05]} cxd4 {[%emt 0:00:20]} 5. Nxd4 {[%emt 0:00:08]} Nf6 {[%emt 0:01:32]} 6. exd5 {[%emt 0:00:42]} Qxd5 {[%emt 0:03:07]} 7. Nb5 {[%emt 0:00:11]} Na6 {[%emt 0:02:49]} 8. Nc3 {[%emt 0:00:10]} Qe5+ {[%emt 0:01:55]} 9. Qe2 {[%emt 0:13:03]} Qxe2+ {[%emt 0:06:18]} 10. Bxe2 {[%emt 0:00:08]} Nb4 {[%emt 0:00:06]} 11. Bd1 {[%emt 0:00:10]} Be7 {[%emt 0:00:28]} 12. a3 {[%emt 0:01:23]} Nbd5 {[%emt 0:01:11]} 13. Nxd5 {[%emt 0:03:26]} Nxd5 {[%emt 0:00:17]} 14. Bf3 {[%emt 0:01:04]} O-O {[%emt 0:00:59]} 15. Bxd5 {[%emt 0:09:53]} exd5 {[%emt 0:00:07]} 16. Nb3 {[%emt 0:00:12]} Bf6 {[%emt 0:03:26]} 17. c3 {[%emt 0:00:15]} Re8+ {[%emt 0:02:48]} 18. Be3 {[%emt 0:02:59]} Bg5 {[%emt 0:01:17]} 19. Kd2 {[%emt 0:02:19]} Bxe3+ {[%emt 0:00:48]} 20. fxe3 {[%emt 0:00:06]} Bf5 {[%emt 0:01:48]} 21. Rhf1 {[%emt 0:02:32]} Be4 {[%emt 0:01:09]} 22. g3 {[%emt 0:01:14]} Re7 {[%emt 0:11:24]} 23. a4 {[%emt 0:04:18]} a5 {[%emt 0:09:51]} 24. Nd4 {[%emt 0:01:34]} h5 {[%emt 0:02:07]} 25. Ra3 {[%emt 0:09:43]} Ra6 {[%emt 0:08:04]} 26. Rb3 {[%emt 0:00:06]} h4 {[%emt 0:01:22]} 27. gxh4 {[%emt 0:10:11]} Rg6 {[%emt 0:02:53]} 28. Rf2 {[%emt 0:01:16]} Rg1 {[%emt 0:00:49]} 29. Rb5 {[%emt 0:03:40]} Rb1 {[%emt 0:01:03]} 30. Nf5 {[%emt 0:01:42]} Rd7 {[%emt 0:07:06]} 31. Ng3 {[%emt 0:00:54]} Re7 {[%emt 0:15:53]} 32. Rf1 {[%emt 0:08:05]} Rxf1 {[%emt 0:02:36]} 33. Nxf1 {[%emt 0:00:06]} Re6 {[%emt 0:00:07]} 34. Rxb7 {[%emt 0:02:37]} Rf6 {[%emt 0:04:52]} 35. Ke1 {[%emt 0:01:03]} Bd3 {[%emt 0:02:32]} 36. Ng3 {[%emt 0:01:34]} Rf3 {[%emt 0:00:15]} 37. Kd2 {[%emt 0:05:05]} Bc4 {[%emt 0:01:28]} 38. e4 {[%emt 0:05:42]} dxe4 {[%emt 0:01:26]} 39. Nxe4 {[%emt 0:00:51]} f6 {[%emt 0:00:14]} 40. b4 {[%emt 0:00:00]} Rd3+ {[%emt 0:00:00]} 41. Kc2 {[%emt 0:11:28]} Rh3 {[%emt 0:05:30]} 42. Nd2 {[%emt 0:02:54]} Bd3+ {[%emt 0:02:50]} 43. Kb3 {[%emt 0:00:37]} Rxh2 {[%emt 0:03:36]} 44. Nf3 {[%emt 0:02:34]} Rh3 {[%emt 0:01:20]} 45. Nd2 {[%emt 0:14:31]} Rh2 {[%emt 0:00:52]} 46. Nf3 {[%emt 0:03:37]} 1/2-1/2

[Event "BLR-ch 1st Stage Men 2020"]
[Site "Minsk"]
[Date "2020.02.01"]
[Round "5.3"]
[White "Podolchenko, Evgeniy"]
[Black "Strybuk, Artsiom I"]
[Result "1-0"]
[ECO "D91"]
[WhiteElo "2394"]
[BlackElo "2166"]
[Annotator "NA"]
[PlyCount "73"]
[EventDate "2020.02.01"]
[EventType "swiss"]
[EventCountry "BLR"]
[SourceTitle "playchess.com"]
[Source "ChessBase"]
[SourceQuality "1"]
[TimeControl "40/5400+30:1800+30"]

1. d4 {[%emt 0:06:01]} Nf6 {[%emt 0:00:00]} 2. Nf3 {[%emt 0:00:07]} g6 {[%emt 0:00:00]} 3. c4 {[%emt 0:00:10]} Bg7 {[%emt 0:00:05]} 4. Nc3 {[%emt 0:00:03]} d5 {[%emt 0:00:07]} 5. Bg5 {[%emt 0:01:18]} Ne4 {[%emt 0:02:06]} 6. cxd5 {[%emt 0:00:06]} Nxg5 {[%emt 0:13:20]} 7. Nxg5 {[%emt 0:02:36]} e6 {[%emt 0:00:11]} 8. Nf3 {[%emt 0:00:04]} exd5 {[%emt 0:00:13]} 9. e3 {[%emt 0:00:05]} O-O {[%emt 0:00:40]} 10. Be2 {[%emt 0:00:15]} c6 {[%emt 0:04:31]} 11. O-O {[%emt 0:00:08]} Bg4 {[%emt 0:03:48]} 12. Ne1 {[%emt 0:02:14]} Bxe2 {[%emt 0:02:46]} 13. Qxe2 {[%emt 0:00:03]} Qd6 {[%emt 0:06:22]} 14. Nd3 {[%emt 0:02:03]} Nd7 {[%emt 0:00:19]} 15. Rac1 {[%emt 0:07:13]} Rfe8 {[%emt 0:03:40]} 16. Qf3 {[%emt 0:02:41]} Nf6 {[%emt 0:08:49]} 17. Nc5 {[%emt 0:04:43]} b6 {[%emt 0:03:15]} 18. Na6 {[%emt 0:01:20]} Rac8 {[%emt 0:05:23]} 19. b4 {[%emt 0:06:22]} b5 {[%emt 0:14:43]} 20. a4 {[%emt 0:05:14]} bxa4 {[%emt 0:01:04]} 21. Ra1 {[%emt 0:00:36]} Nd7 {[%emt 0:02:10]} 22. Rxa4 {[%emt 0:02:22]} Nb6 {[%emt 0:00:15]} 23. Ra2 {[%emt 0:00:14]} Nc4 {[%emt 0:02:40]} 24. Nc5 {[%emt 0:05:04]} Ra8 {[%emt 0:02:03]} 25. b5 {[%emt 0:02:55]} cxb5 {[%emt 0:05:26]} 26. Nxb5 {[%emt 0:00:32]} Qc6 {[%emt 0:04:33]} 27. Nc3 {[%emt 0:01:35]} Nb6 {[%emt 0:04:17]} 28. Rfa1 {[%emt 0:00:38]} Re7 {[%emt 0:01:41]} 29. Ra6 {[%emt 0:00:33]} Bf8 {[%emt 0:01:52]} 30. g3 {[%emt 0:01:00]} Rc7 {[%emt 0:00:24]} 31. R1a5 {[%emt 0:01:56]} h5 {[%emt 0:04:17]} 32. Nb5 {[%emt 0:02:13]} Re7 {[%emt 0:02:11]} 33. Nxa7 {[%emt 0:00:27]} Qd6 {[%emt 0:00:20]} 34. Nb5 {[%emt 0:00:31]} Rxa6 {[%emt 0:00:09]} 35. Rxa6 {[%emt 0:00:18]} Qb8 {[%emt 0:00:45]} 36. Nc3 {[%emt 0:01:16]} Rc7 {[%emt 0:02:51]} 37. Nxd5 {[%emt 0:01:10]} 1-0

[Event "BLR-ch 1st Stage Men 2020"]
[Site "Minsk"]
[Date "2020.02.01"]
[Round "5.4"]
[White "Trifonov, Denis"]
[Black "Lazavik, Denis"]
[Result "0-1"]
[ECO "C50"]
[WhiteElo "2191"]
[BlackElo "2411"]
[Annotator "NA"]
[PlyCount "86"]
[EventDate "2020.02.01"]
[EventType "swiss"]
[EventCountry "BLR"]
[SourceTitle "playchess.com"]
[Source "ChessBase"]
[SourceQuality "1"]
[TimeControl "40/5400+30:1800+30"]

1. e4 {[%emt 0:01:41]} e5 {[%emt 0:00:00]} 2. Nf3 {[%emt 0:00:17]} Nc6 {[%emt 0:00:18]} 3. Bc4 {[%emt 0:00:44]} Bc5 {[%emt 0:01:11]} 4. O-O {[%emt 0:00:40]} Nf6 {[%emt 0:01:13]} 5. d4 {[%emt 0:00:26]} Bxd4 {[%emt 0:02:02]} 6. Nxd4 {[%emt 0:00:23]} Nxd4 {[%emt 0:00:17]} 7. Bg5 {[%emt 0:00:29]} d6 {[%emt 0:04:05]} 8. f4 {[%emt 0:02:35]} Be6 {[%emt 0:09:15]} 9. fxe5 {[%emt 0:04:26]} dxe5 {[%emt 0:01:07]} 10. Na3 {[%emt 0:00:07]} Qe7 {[%emt 0:02:37]} 11. c3 {[%emt 0:12:42]} Bxc4 {[%emt 0:00:33]} 12. Nxc4 {[%emt 0:00:08]} Ne6 {[%emt 0:00:21]} 13. Bxf6 {[%emt 0:01:05]} Qc5+ {[%emt 0:03:09]} 14. Kh1 {[%emt 0:00:24]} Qxc4 {[%emt 0:00:41]} 15. Bxe5 {[%emt 0:01:39]} O-O {[%emt 0:03:23]} 16. Qf3 {[%emt 0:26:08]} f6 {[%emt 0:10:36]} 17. Bg3 {[%emt 0:04:43]} Rad8 {[%emt 0:05:59]} 18. b3 {[%emt 0:04:00]} Qc6 {[%emt 0:01:10]} 19. Qe3 {[%emt 0:10:58]} Nc5 {[%emt 0:12:02]} 20. e5 {[%emt 0:15:06]} f5 {[%emt 0:00:52]} 21. Rad1 {[%emt 0:01:01]} Rxd1 {[%emt 0:12:14]} 22. Rxd1 {[%emt 0:00:10]} b6 {[%emt 0:00:20]} 23. c4 {[%emt 0:02:31]} Ne6 {[%emt 0:01:43]} 24. Be1 {[%emt 0:03:08]} f4 {[%emt 0:04:09]} 25. Qe2 {[%emt 0:02:46]} f3 {[%emt 0:03:03]} 26. gxf3 {[%emt 0:00:07]} Rxf3 {[%emt 0:00:15]} 27. Rd5 {[%emt 0:00:43]} Rf8 {[%emt 0:01:10]} 28. Bg3 {[%emt 0:00:20]} Qe8 {[%emt 0:01:11]} 29. Rd1 {[%emt 0:01:04]} Qg6 {[%emt 0:00:56]} 30. Qg2 {[%emt 0:00:19]} Qg4 {[%emt 0:01:06]} 31. Rf1 {[%emt 0:00:29]} Rxf1+ {[%emt 0:00:40]} 32. Qxf1 {[%emt 0:00:06]} Qe4+ {[%emt 0:00:08]} 33. Kg1 {[%emt 0:00:31]} Nd4 {[%emt 0:00:52]} 34. Qd1 {[%emt 0:01:15]} h6 {[%emt 0:01:36]} 35. h3 {[%emt 0:02:48]} Kh7 {[%emt 0:04:01]} 36. Qg4 {[%emt 0:01:11]} Qxg4 {[%emt 0:01:05]} 37. hxg4 {[%emt 0:00:06]} Ne2+ {[%emt 0:00:04]} 38. Kf2 {[%emt 0:00:05]} Nxg3 {[%emt 0:00:06]} 39. Kxg3 {[%emt 0:00:05]} g6 {[%emt 0:00:29]} 40. g5 {[%emt 0:00:00]} h5 {[%emt 0:00:00]} 41. e6 {[%emt 0:01:26]} Kg7 {[%emt 0:01:03]} 42. Kf4 {[%emt 0:02:43]} Kf8 {[%emt 0:00:29]} 43. Ke5 {[%emt 0:00:26]} Ke7 {[%emt 0:00:14]} 0-1

[Event "BLR-ch 1st Stage Men 2020"]
[Site "Minsk"]
[Date "2020.02.01"]
[Round "5.5"]
[White "Minald, Andrey"]
[Black "Pogosian, Manvel"]
[Result "0-1"]
[ECO "A13"]
[WhiteElo "2076"]
[BlackElo "2383"]
[Annotator "NA"]
[PlyCount "94"]
[EventDate "2020.02.01"]
[EventType "swiss"]
[EventCountry "BLR"]
[SourceTitle "playchess.com"]
[Source "ChessBase"]
[SourceQuality "1"]
[TimeControl "40/5400+30:1800+30"]

1. c4 {[%emt 0:01:14]} Nf6 {[%emt 0:01:11]} 2. Nf3 {[%emt 0:00:13]} e6 {[%emt 0:00:16]} 3. e3 {[%emt 0:00:44]} d5 {[%emt 0:00:27]} 4. b3 {[%emt 0:01:56]} c5 {[%emt 0:00:46]} 5. Bb2 {[%emt 0:00:08]} Nc6 {[%emt 0:00:12]} 6. cxd5 {[%emt 0:03:24]} exd5 {[%emt 0:00:33]} 7. h3 {[%emt 0:00:27]} Bd6 {[%emt 0:03:47]} 8. Be2 {[%emt 0:04:42]} O-O {[%emt 0:00:20]} 9. O-O {[%emt 0:00:07]} a6 {[%emt 0:09:29]} 10. d4 {[%emt 0:00:51]} cxd4 {[%emt 0:06:03]} 11. Nxd4 {[%emt 0:00:32]} Re8 {[%emt 0:00:09]} 12. Nxc6 {[%emt 0:12:31]} bxc6 {[%emt 0:00:01]} 13. Nc3 {[%emt 0:00:19]} Bb8 {[%emt 0:04:34]} 14. Na4 {[%emt 0:21:33]} Qd6 {[%emt 0:19:01]} 15. f4 {[%emt 0:00:19]} Rxe3 {[%emt 0:00:25]} 16. Bd4 {[%emt 0:01:51]} Ba7 {[%emt 0:01:22]} 17. Bxa7 {[%emt 0:17:39]} Rxa7 {[%emt 0:00:07]} 18. Qd4 {[%emt 0:00:09]} Rae7 {[%emt 0:09:11]} 19. Bf3 {[%emt 0:03:31]} Bf5 {[%emt 0:08:34]} 20. Nc5 {[%emt 0:02:45]} Ne8 {[%emt 0:02:20]} 21. Rac1 {[%emt 0:02:31]} Qg6 {[%emt 0:01:51]} 22. Kh2 {[%emt 0:03:37]} h5 {[%emt 0:01:08]} 23. Rc3 {[%emt 0:01:41]} Rxc3 {[%emt 0:01:17]} 24. Qxc3 {[%emt 0:00:01]} h4 {[%emt 0:00:20]} 25. Nxa6 {[%emt 0:04:04]} Bd3 {[%emt 0:01:52]} 26. Qb4 {[%emt 0:03:30]} Re6 {[%emt 0:02:04]} 27. Bg4 {[%emt 0:02:22]} f5 {[%emt 0:00:45]} 28. Nc5 {[%emt 0:09:47]} Bxf1 {[%emt 0:01:05]} 29. Nxe6 {[%emt 0:00:10]} Qxe6 {[%emt 0:00:05]} 30. Bf3 {[%emt 0:00:25]} Kh7 {[%emt 0:05:25]} 31. a4 {[%emt 0:00:39]} Nc7 {[%emt 0:00:57]} 32. Qf8 {[%emt 0:00:39]} Qd7 {[%emt 0:03:20]} 33. Bh5 {[%emt 0:01:25]} g6 {[%emt 0:00:21]} 34. Bd1 {[%emt 0:00:13]} Ne6 {[%emt 0:00:12]} 35. Qf6 {[%emt 0:00:11]} Qd6 {[%emt 0:01:14]} 36. Qxh4+ {[%emt 0:00:09]} Kg7 {[%emt 0:00:06]} 37. Qe1 {[%emt 0:00:43]} Ba6 {[%emt 0:04:22]} 38. g3 {[%emt 0:00:06]} d4 {[%emt 0:00:58]} 39. h4 {[%emt 0:00:10]} Nc5 {[%emt 0:02:44]} 40. Qe8 {[%emt 0:00:00]} Qe6 {[%emt 0:00:00]} 41. Qd8 {[%emt 0:00:53]} Qe3 {[%emt 0:07:48]} 42. Bf3 {[%emt 0:00:43]} Bf1 {[%emt 0:02:50]} 43. Bxc6 {[%emt 0:00:33]} Ne4 {[%emt 0:06:16]} 44. Qe7+ {[%emt 0:03:49]} Kh6 {[%emt 0:00:14]} 45. Bxe4 {[%emt 0:00:08]} Qxe4 {[%emt 0:00:16]} 46. Qf8+ {[%emt 0:00:21]} Kh5 {[%emt 0:00:14]} 47. g4+ {[%emt 0:00:04]} Kxg4 {[%emt 0:00:17]} 0-1

[Event "BLR-ch 1st Stage Men 2020"]
[Site "Minsk"]
[Date "2020.02.01"]
[Round "5.6"]
[White "Vashchilov, Sergey"]
[Black "Kuleshov, Konstantin"]
[Result "1-0"]
[ECO "C41"]
[WhiteElo "2148"]
[BlackElo "2076"]
[Annotator "NA"]
[PlyCount "79"]
[EventDate "2020.02.01"]
[EventType "swiss"]
[EventCountry "BLR"]
[SourceTitle "playchess.com"]
[Source "ChessBase"]
[SourceQuality "1"]
[TimeControl "40/5400+30:1800+30"]

1. e4 {[%emt 0:02:29]} e5 {[%emt 0:00:00]} 2. Nf3 {[%emt 0:00:14]} d6 {[%emt 0:00:00]} 3. d4 {[%emt 0:00:33]} exd4 {[%emt 0:00:00]} 4. Nxd4 {[%emt 0:00:09]} Nf6 {[%emt 0:00:00]} 5. Nc3 {[%emt 0:00:31]} Be7 {[%emt 0:00:06]} 6. f3 {[%emt 0:01:14]} O-O {[%emt 0:00:15]} 7. Be3 {[%emt 0:00:11]} d5 {[%emt 0:07:37]} 8. exd5 {[%emt 0:09:03]} Nxd5 {[%emt 0:00:40]} 9. Nxd5 {[%emt 0:00:10]} Qxd5 {[%emt 0:00:05]} 10. Nb5 {[%emt 0:00:19]} Qc6 {[%emt 0:08:07]} 11. Qd2 {[%emt 0:08:53]} a6 {[%emt 0:03:32]} 12. Na7 {[%emt 0:04:08]} Qe6 {[%emt 0:01:53]} 13. Nxc8 {[%emt 0:00:30]} Bc5 {[%emt 0:00:57]} 14. Kf2 {[%emt 0:00:49]} Bxe3+ {[%emt 0:00:18]} 15. Qxe3 {[%emt 0:00:05]} Qxc8 {[%emt 0:00:11]} 16. Bd3 {[%emt 0:04:38]} Re8 {[%emt 0:00:30]} 17. Qf4 {[%emt 0:00:45]} Qe6 {[%emt 0:07:08]} 18. Rhe1 {[%emt 0:14:53]} Qb6+ {[%emt 0:00:10]} 19. Kf1 {[%emt 0:00:27]} Nc6 {[%emt 0:07:46]} 20. Bc4 {[%emt 0:02:12]} Rf8 {[%emt 0:00:09]} 21. Rad1 {[%emt 0:02:55]} Na5 {[%emt 0:04:10]} 22. Bd3 {[%emt 0:02:39]} g6 {[%emt 0:03:01]} 23. b3 {[%emt 0:04:58]} Rae8 {[%emt 0:00:59]} 24. h4 {[%emt 0:00:58]} c5 {[%emt 0:14:45]} 25. h5 {[%emt 0:01:03]} Qb4 {[%emt 0:01:58]} 26. Be4 {[%emt 0:07:58]} Qc3 {[%emt 0:04:02]} 27. h6 {[%emt 0:03:50]} Re6 {[%emt 0:03:16]} 28. Qc7 {[%emt 0:05:05]} Nc6 {[%emt 0:02:52]} 29. Bxc6 {[%emt 0:04:55]} Rxc6 {[%emt 0:00:18]} 30. Qxb7 {[%emt 0:00:32]} Qf6 {[%emt 0:00:07]} 31. Qe7 {[%emt 0:00:40]} Qxe7 {[%emt 0:01:12]} 32. Rxe7 {[%emt 0:00:04]} c4 {[%emt 0:00:06]} 33. b4 {[%emt 0:00:38]} g5 {[%emt 0:00:57]} 34. Re5 {[%emt 0:00:09]} Rxh6 {[%emt 0:00:27]} 35. Rxg5+ {[%emt 0:00:07]} Kh8 {[%emt 0:00:07]} 36. Kf2 {[%emt 0:00:34]} f5 {[%emt 0:01:14]} 37. Rd4 {[%emt 0:01:57]} Rc6 {[%emt 0:00:39]} 38. Rf4 {[%emt 0:00:50]} c3 {[%emt 0:00:28]} 39. Rgxf5 {[%emt 0:00:37]} Rd8 {[%emt 0:00:42]} 40. Rf8+ {[%emt 0:00:00]} 1-0

[Event "BLR-ch 1st Stage Men 2020"]
[Site "Minsk"]
[Date "2020.02.01"]
[Round "5.7"]
[White "Teterev, Vitaly"]
[Black "Elkin, Leonid"]
[Result "1-0"]
[ECO "A39"]
[WhiteElo "2476"]
[BlackElo "2031"]
[Annotator "ChessBase"]
[PlyCount "87"]
[EventDate "2020.02.01"]
[EventType "swiss"]
[EventCountry "BLR"]
[SourceTitle "playchess.com"]
[Source "ChessBase"]
[SourceQuality "1"]
[TimeControl "40/5400+30:1800+30"]

1. Nf3 {[%emt 0:00:00]} Nf6 {[%emt 0:00:00]} 2. d4 {[%emt 0:00:00]} g6 {[%emt 0:00:00]} 3. g3 {[%emt 0:00:00]} Bg7 {[%emt 0:00:00]} 4. Bg2 {[%emt 0:00:00]} O-O {[%emt 0:00:00]} 5. c4 {[%emt 0:00:00]} c5 {[%emt 0:00:12]} 6. O-O {[%emt 0:00:41]} cxd4 {[%emt 0:00:14]} 7. Nxd4 {[%emt 0:00:04]} Nc6 {[%emt 0:00:05]} 8. Nc3 {[%emt 0:00:25]} Ng4 {[%emt 0:00:13]} 9. e3 {[%emt 0:01:16]} d6 {[%emt 0:00:05]} 10. b3 {[%emt 0:03:34]} Nxd4 {[%emt 0:00:08]} 11. exd4 {[%emt 0:00:13]} Nh6 {[%emt 0:00:03]} 12. Bb2 {[%emt 0:04:32]} Nf5 {[%emt 0:00:06]} 13. Ne2 {[%emt 0:03:46]} Rb8 {[%emt 0:01:45]} 14. a4 {[%emt 0:01:40]} Bd7 {[%emt 0:08:05]} 15. Qc2 {[%emt 0:04:38]} Bc6 {[%emt 0:01:49]} 16. d5 {[%emt 0:01:49]} Bd7 {[%emt 0:00:07]} 17. h4 {[%emt 0:01:04]} Qc7 {[%emt 0:03:28]} 18. Bxg7 {[%emt 0:04:47]} Nxg7 {[%emt 0:02:32]} 19. Nf4 {[%emt 0:07:55]} Bf5 {[%emt 0:01:28]} 20. Qb2 {[%emt 0:05:11]} a5 {[%emt 0:09:58]} 21. Rfe1 {[%emt 0:01:12]} b6 {[%emt 0:20:09]} 22. Re3 {[%emt 0:02:58]} Rbe8 {[%emt 0:03:09]} 23. Rae1 {[%emt 0:06:07]} Bg4 {[%emt 0:05:44]} 24. Qd2 {[%emt 0:06:38]} e5 {[%emt 0:14:12]} 25. dxe6 {[%emt 0:01:42]} fxe6 {[%emt 0:00:05]} 26. Rd3 {[%emt 0:07:37]} Rd8 {[%emt 0:02:32]} 27. Rd4 {[%emt 0:06:54]} Bf5 {[%emt 0:01:47]} 28. Qd1 {[%emt 0:06:08]} e5 {[%emt 0:02:56]} 29. Nd5 {[%emt 0:00:24]} Qc5 {[%emt 0:00:06]} 30. Rd2 {[%emt 0:00:34]} Be6 {[%emt 0:03:40]} 31. Nc3 {[%emt 0:05:48]} Nf5 {[%emt 0:04:41]} 32. Bd5 {[%emt 0:00:22]} Bxd5 {[%emt 0:00:46]} 33. Rxd5 {[%emt 0:00:14]} Qb4 {[%emt 0:00:42]} 34. Nb5 {[%emt 0:00:14]} Ne7 {[%emt 0:05:19]} 35. Rd3 {[%emt 0:05:55]} Qc5 {[%emt 0:00:45]} 36. Qd2 {[%emt 0:01:28]} Rf6 {[%emt 0:00:26]} 37. Nc3 {[%emt 0:00:31]} Re6 {[%emt 0:03:24]} 38. Ne4 {[%emt 0:00:57]} Qa3 {[%emt 0:03:44]} 39. Ng5 {[%emt 0:01:29]} Rf6 {[%emt 0:00:06]} 40. Rxe5 {[%emt 0:00:00]} Nc6 {[%emt 0:00:00]} 41. Re1 {[%emt 0:02:13]} Rf5 {[%emt 0:02:57]} 42. Rd5 {[%emt 0:05:30]} Rdf8 {[%emt 0:03:51]} 43. Rxd6 {[%emt 0:07:37]} Ne5 {[%emt 0:03:09]} 44. Rd8 {[%emt 0:06:30]} 1-0

[Event "BLR-ch 1st Stage Men 2020"]
[Site "Minsk"]
[Date "2020.02.01"]
[Round "6.1"]
[White "Zarubitski, Viachaslau"]
[Black "Vashchilov, Sergey"]
[Result "1-0"]
[ECO "C04"]
[WhiteElo "2451"]
[BlackElo "2148"]
[Annotator "ChessBase"]
[PlyCount "113"]
[EventDate "2020.02.01"]
[EventType "swiss"]
[EventCountry "BLR"]
[SourceTitle "playchess.com"]
[Source "ChessBase"]
[SourceQuality "1"]
[TimeControl "40/5400+30:1800+30"]

1. e4 {[%emt 0:06:34]} e6 {[%emt 0:01:23]} 2. d4 {[%emt 0:00:13]} d5 {[%emt 0:00:11]} 3. Nd2 {[%emt 0:00:11]} Nc6 {[%emt 0:00:57]} 4. Ngf3 {[%emt 0:00:42]} Nf6 {[%emt 0:00:13]} 5. e5 {[%emt 0:00:42]} Nd7 {[%emt 0:00:12]} 6. Nb3 {[%emt 0:00:54]} a5 {[%emt 0:02:28]} 7. a4 {[%emt 0:00:26]} Be7 {[%emt 0:02:12]} 8. c3 {[%emt 0:00:26]} b6 {[%emt 0:01:15]} 9. Qd2 {[%emt 0:03:03]} Ba6 {[%emt 0:03:31]} 10. Bxa6 {[%emt 0:00:09]} Rxa6 {[%emt 0:00:04]} 11. Qf4 {[%emt 0:00:09]} O-O {[%emt 0:06:53]} 12. Qg4 {[%emt 0:07:05]} Kh8 {[%emt 0:06:04]} 13. h4 {[%emt 0:00:32]} f5 {[%emt 0:05:51]} 14. Qg3 {[%emt 0:00:37]} Qb8 {[%emt 0:02:22]} 15. Ng5 {[%emt 0:06:30]} Bxg5 {[%emt 0:02:59]} 16. hxg5 {[%emt 0:00:59]} g6 {[%emt 0:00:35]} 17. Qd3 {[%emt 0:00:59]} Qb7 {[%emt 0:04:29]} 18. Bd2 {[%emt 0:04:24]} Raa8 {[%emt 0:05:06]} 19. Qb5 {[%emt 0:13:31]} Rf7 {[%emt 0:03:25]} 20. Nc1 {[%emt 0:03:16]} Na7 {[%emt 0:07:23]} 21. Qb3 {[%emt 0:01:17]} c5 {[%emt 0:01:36]} 22. Ne2 {[%emt 0:00:16]} c4 {[%emt 0:01:36]} 23. Qa3 {[%emt 0:00:42]} Nf8 {[%emt 0:09:15]} 24. O-O {[%emt 0:08:06]} Rb8 {[%emt 0:02:21]} 25. Rfb1 {[%emt 0:01:56]} Qc6 {[%emt 0:00:53]} 26. Nf4 {[%emt 0:02:01]} Kg8 {[%emt 0:02:09]} 27. b3 {[%emt 0:02:29]} cxb3 {[%emt 0:01:37]} 28. Rxb3 {[%emt 0:00:16]} Rfb7 {[%emt 0:00:58]} 29. Rab1 {[%emt 0:01:29]} Nc8 {[%emt 0:03:26]} 30. g3 {[%emt 0:11:31]} Kf7 {[%emt 0:02:00]} 31. Ng2 {[%emt 0:01:03]} Qc4 {[%emt 0:03:26]} 32. Ne3 {[%emt 0:02:44]} Qe2 {[%emt 0:02:15]} 33. Qc1 {[%emt 0:02:07]} Rc7 {[%emt 0:02:50]} 34. c4 {[%emt 0:03:41]} dxc4 {[%emt 0:01:30]} 35. Rc3 {[%emt 0:00:29]} Rd7 {[%emt 0:02:17]} 36. Rxc4 {[%emt 0:00:34]} Ne7 {[%emt 0:03:16]} 37. Bxa5 {[%emt 0:00:47]} f4 {[%emt 0:01:07]} 38. gxf4 {[%emt 0:10:36]} Rdb7 {[%emt 0:02:00]} 39. Bb4 {[%emt 0:03:30]} Nd5 {[%emt 0:03:07]} 40. Qd1 {[%emt 0:00:00]} Qxd1+ {[%emt 0:00:00]} 41. Nxd1 {[%emt 0:03:10]} Nxf4 {[%emt 0:03:47]} 42. Nc3 {[%emt 0:03:34]} Nd7 {[%emt 0:05:28]} 43. Bd6 {[%emt 0:07:17]} Ra8 {[%emt 0:00:49]} 44. Kh2 {[%emt 0:03:40]} Rba7 {[%emt 0:02:23]} 45. Kg3 {[%emt 0:00:44]} Nd5 {[%emt 0:00:19]} 46. Rh1 {[%emt 0:01:06]} Nxc3 {[%emt 0:06:27]} 47. Rxc3 {[%emt 0:00:39]} Kg8 {[%emt 0:00:41]} 48. Rhc1 {[%emt 0:07:25]} Rxa4 {[%emt 0:05:46]} 49. Rc7 {[%emt 0:00:16]} R4a7 {[%emt 0:03:15]} 50. Rxa7 {[%emt 0:00:09]} Rxa7 {[%emt 0:00:04]} 51. Rc8+ {[%emt 0:00:03]} Kf7 {[%emt 0:03:04]} 52. Rh8 {[%emt 0:00:04]} b5 {[%emt 0:02:54]} 53. Rxh7+ {[%emt 0:00:09]} Kg8 {[%emt 0:00:06]} 54. Re7 {[%emt 0:00:14]} Rb7 {[%emt 0:00:17]} 55. d5 {[%emt 0:01:10]} exd5 {[%emt 0:03:50]} 56. e6 {[%emt 0:00:05]} Nc5 {[%emt 0:00:55]} 57. Re8+ {[%emt 0:00:35]} 1-0

[Event "BLR-ch 1st Stage Men 2020"]
[Site "Minsk"]
[Date "2020.02.01"]
[Round "6.2"]
[White "Lazavik, Denis"]
[Black "Yezhel, Valiantsin"]
[Result "1/2-1/2"]
[ECO "A81"]
[WhiteElo "2411"]
[BlackElo "2187"]
[Annotator "NA"]
[PlyCount "75"]
[EventDate "2020.02.01"]
[EventType "swiss"]
[EventCountry "BLR"]
[SourceTitle "playchess.com"]
[Source "ChessBase"]
[SourceQuality "1"]
[TimeControl "40/5400+30:1800+30"]

1. d4 {[%emt 0:00:00]} f5 {[%emt 0:00:00]} 2. Nf3 {[%emt 0:00:10]} Nf6 {[%emt 0:00:00]} 3. g3 {[%emt 0:00:38]} g6 {[%emt 0:00:11]} 4. Bg2 {[%emt 0:00:17]} Bg7 {[%emt 0:00:04]} 5. O-O {[%emt 0:00:34]} O-O {[%emt 0:00:04]} 6. b3 {[%emt 0:00:29]} d6 {[%emt 0:00:54]} 7. Bb2 {[%emt 0:00:43]} Ng4 {[%emt 0:03:23]} 8. h3 {[%emt 0:05:03]} Nh6 {[%emt 0:00:07]} 9. Nc3 {[%emt 0:00:51]} c6 {[%emt 0:02:50]} 10. e4 {[%emt 0:04:54]} e5 {[%emt 0:05:16]} 11. dxe5 {[%emt 0:09:04]} dxe5 {[%emt 0:00:05]} 12. Qxd8 {[%emt 0:02:36]} Rxd8 {[%emt 0:00:04]} 13. Rfd1 {[%emt 0:07:25]} Re8 {[%emt 0:00:04]} 14. Bf1 {[%emt 0:01:51]} Nf7 {[%emt 0:02:25]} 15. a4 {[%emt 0:09:02]} Be6 {[%emt 0:01:18]} 16. Nd2 {[%emt 0:02:03]} f4 {[%emt 0:03:51]} 17. g4 {[%emt 0:04:31]} Bf8 {[%emt 0:11:20]} 18. Bc4 {[%emt 0:10:41]} Bc5 {[%emt 0:05:52]} 19. Bxe6 {[%emt 0:01:45]} Rxe6 {[%emt 0:00:03]} 20. Nf3 {[%emt 0:00:34]} Re7 {[%emt 0:00:42]} 21. Ne2 {[%emt 0:03:01]} Na6 {[%emt 0:02:38]} 22. Nc1 {[%emt 0:01:41]} Nb4 {[%emt 0:01:24]} 23. Nd3 {[%emt 0:03:40]} Nxd3 {[%emt 0:00:10]} 24. Rxd3 {[%emt 0:00:13]} g5 {[%emt 0:15:02]} 25. Kf1 {[%emt 0:02:44]} Kg7 {[%emt 0:03:06]} 26. Ke2 {[%emt 0:04:12]} h6 {[%emt 0:00:08]} 27. h4 {[%emt 0:07:48]} Kf6 {[%emt 0:01:57]} 28. Rh1 {[%emt 0:00:36]} Rg8 {[%emt 0:03:46]} 29. hxg5+ {[%emt 0:02:13]} hxg5 {[%emt 0:00:04]} 30. Rdd1 {[%emt 0:00:41]} Rg6 {[%emt 0:02:25]} 31. Rh7 {[%emt 0:05:21]} Rg7 {[%emt 0:00:47]} 32. Rh5 {[%emt 0:00:44]} Rg8 {[%emt 0:00:53]} 33. c4 {[%emt 0:04:02]} Bb4 {[%emt 0:00:57]} 34. Rh7 {[%emt 0:00:24]} Rg7 {[%emt 0:00:19]} 35. Rh5 {[%emt 0:00:25]} Rg8 {[%emt 0:00:05]} 36. Rhh1 {[%emt 0:00:50]} Rg6 {[%emt 0:00:24]} 37. Rh7 {[%emt 0:01:47]} Rg7 {[%emt 0:00:08]} 38. Rh5 {[%emt 0:01:15]} 1/2-1/2